Cogmind - Beta 15 @@@ ROGUE MODE // 2025.06.06 @ 14:42:45 Player: EX-OCT Result: Destroyed by G-50 Soldier with Heavy Laser Performance ------------- Evolutions (5) 2500 Regions Visited (17) 3400 Robots Destroyed (177) 885 Value Destroyed (10072) 10072 Prototype IDs (29) 580 Alien Tech Used (0) 0 Bonus (5317) 5317 TOTAL SCORE: 22754 Bonus ------- Triggered High Security 500 High Alert Combat Kills 2145 Follower Combat Kills 1737 Entered Garrisons 600 Met Data Miner 300 Acquired ECA 300 Friendly Fire -265 Cogmind --------- Core Integrity 0/1000 Matter 80/300 Energy 100/100 System Corruption 6% Temperature Warning (329) Movement Core (200) Ox3 Location -5/Extension Parts ------- > --- POWER (1) -------- (None) > --- PROPULSION (6) --- (None) > --- UTILITY (8) ------ Medium Storage Unit Improved Sensor Array Graphene Brace > --- WEAPON (2) ------- (None) > --- INVENTORY (10) --- Quantum Reactor Energy Well (350) Advanced Signal Interpreter Advanced System Shield Enhanced Nova Cannon Enhanced Hardcell Cannon Enhanced Hardcell Cannon Enhanced Hardcell Cannon Power Sword Peak State ------------ > --- POWER ------------ Light Quantum Reactor > --- PROPULSION ------- Advanced Heavy Treads Advanced Heavy Siege Treads Advanced Heavy Siege Treads > --- UTILITY ---------- Advanced Heat Sink Medium Storage Unit Improved Sensor Array Advanced Signal Interpreter Advanced Phase Shifter Graphene Brace Improved Hacking Suite Advanced Hacking Suite > --- WEAPON ----------- Enhanced Hardcell Cannon Enhanced Hardcell Cannon > --- INVENTORY -------- Light Quantum Reactor Energy Well Advanced Signal Interpreter Advanced System Shield Advanced Corruption Screen Enhanced Nova Cannon Enhanced Hardcell Cannon Enhanced Hardcell Cannon Long-range Missile Launcher Power Sword [Rating: 127] Favorites ----------- Power Light Nuclear Core Engine Light Angular Momentum Engine Power Core Light Nuclear Core Reactor Quantum Reactor Propulsion Improved Flight Unit Treads Advanced Heavy Siege Treads Leg Carbon-fiber Leg Hover Unit Gravmag System Flight Unit Improved Flight Unit Utility Medium Storage Unit Device Improved Sensor Array Storage Medium Storage Unit Processor Advanced Signal Interpreter Hackware Improved Hacking Suite Protection Layered Light Armor Plating Weapon Enhanced Hardcell Cannon Energy Gun Small Laser Ballistic Cannon Enhanced Hardcell Cannon Launcher Long-range Missile Launcher Special Weapon Enhanced Flamer Impact Weapon Heavy Hammer Slashing Weapon Power Sword Special Melee Weapon Dirty Datajack Build | -11 -10 -9 -8 -8 -8 -8 -7 -7 -7 -7 -6 -6 -6 -6 -5 -5 -5 ------- Run | Yrd Mat Mat Mat Gar Mat Sto Fac Low Low Dat Pro Fac Gar Fac Fac Gar Ext Slots Evolved 10 | . . 2 2 . . . 2 . . . . 2 . . 2 . . Power . | . . . . . . . . . . . . . . . . . . Propulsion 4 | . . 1 1 . . . 1 . . . . . . . 1 . . Utility 6 | . . 1 1 . . . 1 . . . . 2 . . 1 . . Weapon . | . . . . . . . . . . . . . . . . . . Parts Attached 174 | 5 9 4 19 7 2 . 3 4 . . 3 21 30 10 15 34 8 Power 23 | . 1 1 2 3 1 . . . . . . 4 3 . 3 5 . Engine 12 | . 1 1 2 2 . . . . . . . 1 2 . 1 2 . Core 9 | . . . . 1 1 . . . . . . 3 1 . 2 1 . Reactor 2 | . . . . . . . . . . . . . . . . 2 . Propulsion 69 | 2 4 2 7 2 1 . . 1 . . 2 11 14 2 3 17 1 Treads 9 | 2 . . . . . . . . . . . . 3 . . 3 1 Leg 9 | . . . . . . . . . . . . . . . . 9 . Wheel . | . . . . . . . . . . . . . . . . . . Hover 9 | . . . . . . . . . . . . 5 4 . . . . Flight 42 | . 4 2 7 2 1 . . 1 . . 2 6 7 2 3 5 . Utility 53 | 1 2 1 5 1 . . 3 1 . . . 4 10 7 7 7 4 Device 17 | 1 . . 1 . . . 1 1 . . . . 1 2 4 5 1 Storage 5 | . . 1 . . . . . . . . . . 1 2 . 1 . Processor 8 | . . . 1 . . . 1 . . . . . 3 2 . . 1 Hackware 12 | . 1 . 1 . . . 1 . . . . 4 2 . 3 . . Protection 11 | . 1 . 2 1 . . . . . . . . 3 1 . 1 2 Artifact . | . . . . . . . . . . . . . . . . . . Weapon 29 | 2 2 . 5 1 . . . 2 . . 1 2 3 1 2 5 3 Energy Gun 3 | 2 . . . . . . . . . . . . . . . . 1 Energy Cannon . | . . . . . . . . . . . . . . . . . . Ballistic Gun . | . . . . . . . . . . . . . . . . . . Ballistic Cannon 6 | . . . . . . . . . . . . 1 2 . . 3 . Launcher 3 | . . . 1 . . . . . . . . . . . . . 2 Special Weapon 2 | . . . . . . . . 1 . . . . . . . 1 . Impact Weapon 5 | . 2 . 3 . . . . . . . . . . . . . . Slashing Weapon 8 | . . . 1 1 . . . . . . . 1 1 1 2 1 . Piercing Weapon . | . . . . . . . . . . . . . . . . . . Special Melee Weapon 2 | . . . . . . . . 1 . . 1 . . . . . . Unidentified Prototypes 4 | . 1 . . . . . . . . . . 1 . . 1 . 1 Parts Lost 73 | . 1 1 5 6 2 . . . . . . 7 22 1 3 12 13 Power 15 | . . 1 1 3 1 . . . . . . 2 3 . . 3 1 Propulsion 29 | . . . 1 2 1 . . . . . . 3 11 . 2 6 3 Utility 24 | . 1 . 3 1 . . . . . . . 1 6 1 1 3 7 Weapon 5 | . . . . . . . . . . . . 1 2 . . . 2 Highest Loss Streak 10 | . 1 1 2 1 2 . . . . . . 4 6 1 2 4 10 To Critical Strikes 3 | . . . . . . . . . . . . 1 1 . 1 . . Average Backups 8 | . 3 4 8 9 9 10 9 9 10 10 10 8 7 7 9 9 9 Power . | . 1 . . . . . . . . . . . . 1 2 1 1 Propulsion 1 | . . 1 4 3 2 3 2 1 . . . . . 1 . . . Utility 2 | . . . 1 2 4 4 4 3 3 3 3 1 1 1 3 4 3 Weapon 2 | . 1 1 2 3 3 3 3 3 3 3 2 2 2 2 2 2 5 Tool/Special . | . . . . . . . . . . . . . . . . . . Unused Backups 16 | . . 1 . 1 . . . 2 . . . . 2 1 1 3 5 Power 5 | . . 1 . . . . . . . . . . . . 1 2 1 Propulsion . | . . . . . . . . . . . . . . . . . . Utility 3 | . . . . . . . . 1 . . . . . . . . 2 Weapon 6 | . . . . 1 . . . 1 . . . . . 1 . 1 2 Tool/Special 2 | . . . . . . . . . . . . . 2 . . . . Average Slot Usage (%) 83 | . 51 74 73 87 88 90 85 98 100 100 100 91 80 85 88 83 78 Engine 1 | . . 4 5 5 6 . . . . . . . 1 . 2 . . Core 2 | . . . . 1 1 9 7 7 7 7 7 5 3 6 2 . . Reactor 1 | . . . . . . . . . . . . . . . . 3 4 Treads 4 | . 2 . . . . . . . . . . . 5 . . 9 16 Leg 1 | . . . . . . . . . . . . . . . . 4 . Hover 2 | . . . . . . . . . . . . 12 9 . . . . Flight 17 | . 13 31 35 35 36 36 37 38 38 38 38 14 7 26 26 6 . Device 10 | . 5 . 2 9 9 9 7 7 7 7 7 5 1 6 14 20 15 Storage 5 | . . 5 9 9 9 9 7 7 7 7 7 6 4 5 5 5 5 Processor 6 | . . . 2 . . . 6 7 7 7 7 6 9 19 9 5 8 Hackware 12 | . 1 11 2 9 9 9 9 15 15 15 15 25 20 10 9 11 10 Protection 2 | . 2 11 4 9 9 9 . . . . . . 5 1 5 . . Ballistic Cannon 3 | . . . . . . . . . . . . 2 2 . . 6 9 Slashing Weapon 4 | . . . 5 9 9 9 7 7 7 7 7 6 3 6 8 4 . Peak Build Rating 127 | 5 13 18 27 31 27 25 32 42 42 42 45 63 65 66 91 127 127 Average Rating 68 | 3 4 15 22 27 24 25 29 36 42 42 43 55 47 60 80 106 120 On Entrance 40 | . 5 13 16 27 27 25 25 32 42 42 42 44 60 55 66 88 127 Naked Turns . | . . . . . . . . . . . . . . . . . . Heaviest Build 67 | 3 7 14 23 28 25 22 22 20 19 19 21 27 67 25 33 62 66 Greatest Support 230 | 40 10 15 26 26 25 24 24 22 20 20 22 48 60 32 41 230 230 Greatest Overweight (x) 7 | . . . 1 6 . . . . . . . 4 7 . 1 1 . Average Overweight (x) . | . . . . . . . . . . . . . . . . . . Largest Inventory Capacity 20 | 5 5 10 10 10 10 10 10 10 10 10 10 10 20 15 10 10 10 Average Capacity 9 | 5 5 7 10 10 10 10 10 10 10 10 10 10 9 9 10 10 10 Most Carried 10 | 1 5 8 10 10 10 10 10 10 10 10 10 10 10 10 10 10 10 Average Carried 8 | . 3 4 8 9 9 10 9 9 10 10 10 8 7 8 9 9 9 Final Capacity 10 | 5 5 10 10 10 10 10 10 10 10 10 10 10 5 10 10 10 10 Final Carried 10 | 1 4 8 10 10 10 10 9 10 10 10 10 9 5 10 9 10 9 Class Distribution -------------------- 41% | Hacker-Mutant 14% | Hacker-Sprinter 12% | Sprinter 7% | Mutant 6% | Scavenger-Sprinter 4% | Hacker-Ninja 3% | Scavenger-Scout 3% | Ninja Dominant Class ---------------- Mutant | -10/Materials Mutant | -9/Materials Sprinter | -8/Materials Sprinter | -8/Garrison Scavenger-Sprinter | -8/Materials Scavenger-Sprinter | -8/Storage Sprinter | -7/Factory Hacker-Sprinter | -7/Lower Caves Hacker-Sprinter | -7/Lower Caves Hacker-Sprinter | -7/Data Miner Hacker-Sprinter | -6/Proximity Caves Hacker-Mutant | -6/Factory Hacker-Mutant | -6/Garrison Scavenger-Scout | -6/Factory Hacker-Ninja | -5/Factory Hacker-Mutant | -5/Garrison Hacker-Mutant | -5/Extension Resources | -11 -10 -9 -8 -8 -8 -8 -7 -7 -7 -7 -6 -6 -6 -6 -5 -5 -5 ----------- Run | Yrd Mat Mat Mat Gar Mat Sto Fac Low Low Dat Pro Fac Gar Fac Fac Gar Ext Matter Collected 4606 | 250 5 115 250 120 . 60 . 80 . . 100 335 794 122 240 1233 902 Remotely 443 | . . . . . . . . . . . . . . . . . 443 Salvage Created 7369 | 79 155 186 807 368 . . . . . . 49 601 837 432 542 2224 1089 Parts 291 | 4 5 4 46 20 . . . . . . 7 26 33 8 45 63 30 Haulers Intercepted 4 | . . 1 2 . . . . . . . . . . 1 . . . Recyclers Shooed . | . . . . . . . . . . . . . . . . . . Parts Field Recycled . | . . . . . . . . . . . . . . . . . . Retrieved Matter . | . . . . . . . . . . . . . . . . . . Parts Self-Destructed 10 | . . . . . . . . 7 . . 3 . . . . . . Prevented 1 | . . . . . . . . 1 . . . . . . . . . Kills | -11 -10 -9 -8 -8 -8 -8 -7 -7 -7 -7 -6 -6 -6 -6 -5 -5 -5 ------- Run | Yrd Mat Mat Mat Gar Mat Sto Fac Low Low Dat Pro Fac Gar Fac Fac Gar Ext Combat Hostiles Destroyed 142 | . 4 3 18 13 . . . . . . 4 7 17 . 7 44 25 Melee 70 | . . 2 11 13 . . . . . . . 3 6 . 7 28 . Guns 4 | . 4 . . . . . . . . . . . . . . . . Cannons 38 | . . . . . . . . . . . . . 11 . . 16 11 AOE 25 | . . . 3 . . . . . . . 4 4 . . . . 14 Classes Destroyed 18 | 2 1 3 4 . . . . . . . . 2 1 . . 2 3 Worker 3 | . . . 1 . . . . . . . . 2 . . . . . Tunneler 2 | 1 . . 1 . . . . . . . . . . . . . . Hauler 4 | . . 1 2 . . . . . . . . . . 1 . . . Recycler 8 | 1 . 1 . . . . . . . . . 2 . 2 . . 2 Mechanic 3 | . . . 1 . . . . . . . . . . . . . 2 Operator 5 | . . . 2 . . . . . . . . 1 1 . 1 . . Watcher 9 | . . 1 3 . . . . . . . . . . 1 2 1 1 Swarmer 37 | . . 3 6 8 . . . . . . 4 4 2 . . 8 2 Saboteur 1 | . . . . . . . . . . . . . . . . . 1 Grunt 57 | . 4 . 7 3 . . . . . . . 1 5 . . 25 12 Brawler 2 | . . . . . . . . . . . . . . . . . 2 Duelist 4 | . . . . . . . . . . . . 1 1 . . . 2 Sentry 24 | . . . 5 2 . . . . . . . 1 6 . 3 4 3 Demolisher 1 | . . . . . . . . . . . . . . . . . 1 Specialist 1 | . . . . . . . . . . . . . . . . 1 . Hunter 5 | . . . . . . . . . . . . . 1 . 2 2 . Programmer 10 | . . . . . . . . . . . . 1 2 . 2 3 2 Behemoth 1 | . . . . . . . . . . . . . . . . 1 . Best Kill Streak 12 | 2 2 2 12 4 . . . . . . 4 6 6 2 3 7 12 Combat Bots Only 10 | . 2 2 10 4 . . . . . . 4 4 6 . 2 7 10 Max Kills in Single Turn 6 | 1 1 1 5 1 . . . . . . 2 2 1 1 1 2 6 Gunslinging . | . . . . . . . . . . . . . . . . . . Exploded 5 | . . . 3 . . . . . . . 2 1 . . . . 5 Melee 2 | . . 1 1 1 . . . . . . . 1 1 . 1 2 . Uniques/NPCs Destroyed . | . . . . . . . . . . . . . . . . . . Combat | -11 -10 -9 -8 -8 -8 -8 -7 -7 -7 -7 -6 -6 -6 -6 -5 -5 -5 -------- Run | Yrd Mat Mat Mat Gar Mat Sto Fac Low Low Dat Pro Fac Gar Fac Fac Gar Ext Hostile Shots Fired 1275 | . 28 61 82 162 22 5 . 5 . . 9 47 379 11 54 191 219 Missed 462 | . 12 22 33 69 11 1 . 1 . . 4 17 127 9 34 77 45 Hits 813 | . 16 39 49 93 11 4 . 4 . . 5 30 252 2 20 114 174 Melee 19 | . . . . . . . . . . . . . 1 . . . 18 Projectile 794 | . 16 39 49 93 11 4 . 4 . . 5 30 251 2 20 114 156 AOE 3 | . . . . . . . . . . . . . . . . . 3 Critical Strikes 31 | . . 2 1 3 . . . . . . 1 2 4 . 4 3 11 Actively Blocked 13 | . . 1 . . . . . . . . . . . . . 1 11 Damage Taken 13214 | . 203 384 761 1080 161 63 . 71 . . 77 630 2881 140 380 2191 4192 Core 2516 | . 64 163 201 205 44 15 . 20 . . . 177 588 38 46 484 471 Absorbed by Shields 331 | . . . . . . . . . . . . 63 86 . . . 182 Reduced by Siege Mode 686 | . . . . . . . . . . . . . . . . 32 654 Redirected to Shielding 89 | . . 29 22 . . . . . . . . . . . . 38 . Regen/Repaired (Parts) 224 | . . . 134 . . . . . . . . . . . 48 . 42 Core Remaining (%) 58 | 100 74 59 . . . 15 . . . . 97 . . 5 . . . Volleys Fired 211 | 4 21 . 1 1 . . . . . . 4 2 50 . . 64 64 Largest 2 | 2 2 . 1 1 . . . . . . 1 1 2 . . 2 2 Hottest 116 | 80 80 . 30 30 . . . . . . 30 30 88 . . 116 116 Shots Fired 328 | 8 42 . 1 1 . . . . . . 4 2 58 . . 100 112 Gun 50 | 8 42 . . . . . . . . . . . . . . . . Cannon 251 | . . . . . . . . . . . . . 58 . . 93 100 Launcher 20 | . . . 1 1 . . . . . . 4 2 . . . . 12 Special 7 | . . . . . . . . . . . . . . . . 7 . Kinetic 251 | . . . . . . . . . . . . . 58 . . 93 100 Thermal 50 | 8 42 . . . . . . . . . . . . . . . . Explosive 20 | . . . 1 1 . . . . . . 4 2 . . . . 12 Electromagnetic . | . . . . . . . . . . . . . . . . . . Robot Hit Streak 20 | 1 5 . . . . . . . . . 1 . 14 . . 20 19 Robot Miss Streak 3 | 2 2 . . . . . . . . . 3 1 2 . . 2 2 Penetration Max 1 | . . . . . . . . . . . . . 1 . . . . Secondary Targets 2 | . 2 . . . . . . . . . . . . . . . . Max Gunslinging Chain 1 | . 1 . . . . . . . . . . . . . . . . Shots Hit Robots 465 | 3 30 9 47 37 . . . . . . 2 19 68 10 21 137 82 Core Hits 272 | 3 10 1 18 11 . . . . . . 7 15 29 4 13 57 104 Critical Kills . | . . . . . . . . . . . . . . . . . . Critical Parts Destroyed 6 | . . . 6 . . . . . . . . . . . . . . Critical Strikes 48 | . . . 6 7 . . . . . . . 1 8 . . 21 5 Blast 17 | . . . . . . . . . . . . . 6 . . 6 5 Smash 6 | . . . 6 . . . . . . . . . . . . . . Sever 25 | . . . . 7 . . . . . . . 1 2 . . 15 . Melee Attacks 586 | . 2 29 84 66 4 3 1 . . . 1 33 94 40 71 158 . Impact 84 | . 2 29 53 . . . . . . . . . . . . . . Slashing 493 | . . . 31 66 4 3 1 . . . 1 25 93 40 71 158 . Piercing 9 | . . . . . . . . . . . . 8 1 . . . . Sneak Attacks 23 | . . 2 6 1 . . . . . . . 6 1 3 1 3 . Combat Hostiles 4 | . . . . 1 . . . . . . . . . . . 3 . Follow-up Attacks 22 | . . . 1 . . . . . . . . . . . 3 18 . Damage Inflicted 23946 | 33 325 489 2302 1202 . . . . . . 191 833 3371 594 938 5955 7713 Guns 358 | 33 325 . . . . . . . . . . . . . . . . Cannons 7738 | . . . . . . . . . . . . . 2338 . . 2022 3378 Explosions 4837 | . . . 193 . . . . . . . 191 118 . . . . 4335 Melee 11013 | . . 489 2109 1202 . . . . . . . 715 1033 594 938 3933 . Ramming . | . . . . . . . . . . . . . . . . . . Kinetic 7738 | . . . . . . . . . . . . . 2338 . . 2022 3378 Thermal 712 | 33 325 . . . . . . . . . . . . . . . 354 Explosive 4483 | . . . 193 . . . . . . . 191 118 . . . . 3981 Electromagnetic . | . . . . . . . . . . . . . . . . . . Impact 1954 | . . 489 1465 . . . . . . . . . . . . . . Slashing 9046 | . . . 644 1202 . . . . . . . 704 1031 594 938 3933 . Piercing 13 | . . . . . . . . . . . . 11 2 . . . . Highest Corruption 6 | . . . 5 5 5 5 . . . . . . 3 4 2 2 6 Average Corruption 3 | . . . 5 5 5 5 . . . . . . 2 3 1 2 4 Corruption Purged . | . . . . . . . . . . . . . . . . . . Corruption Blocked 9 | . . . . . . . . . . . . . . . . . 9 Effects 105 | . . . 6 15 3 1 . . . . . . 13 10 4 25 28 Message Errors 22 | . . . 2 4 1 . . . . . . . 4 . . 5 6 Matter Fused 18 | . . . . 3 . . . . . . . . 2 2 2 4 5 Heat Flow Errors 12 | . . . . 1 . . . . . . . . 1 4 1 2 3 Energy Discharges 17 | . . . . 2 1 1 . . . . . . 4 . . 5 4 Parts Rejected 1 | . . . . . 1 . . . . . . . . . . . . Parts Fused 1 | . . . . . . . . . . . . . . . . . 1 Data Loss (minor) 17 | . . . 3 4 . . . . . . . . 2 2 . 3 3 Data Loss (major) 6 | . . . 1 . . . . . . . . . . . . 2 3 Misfires 3 | . . . . . . . . . . . . . . . . 2 1 Alerts 6 | . . . . 1 . . . . . . . . . 2 1 2 . Weapon Failures 2 | . . . . . . . . . . . . . . . . . 2 Overload Shots . | . . . . . . . . . . . . . . . . . . Overflow Damage 1697 | . . 270 399 60 . . . . . . . 103 191 107 47 261 259 Projectiles 235 | . . . . . . . . . . . . . 78 . . 22 135 Explosions 129 | . . . . . . . . . . . . 5 . . . . 124 Melee 1333 | . . 270 399 60 . . . . . . . 98 113 107 47 239 . Knockbacks 29 | . . . 4 . . . . . . . . . 8 . . 5 12 Impact 4 | . . . 4 . . . . . . . . . . . . . . Kinetic 23 | . . . . . . . . . . . . . 8 . . 4 11 Secondary 2 | . . . . . . . . . . . . . . . . 1 1 Self-Inflicted Damage 303 | . . . . . . . . . . . . . . . . . 303 Shots 6 | . . . . . . . . . . . . . . . . . 6 Rammed . | . . . . . . . . . . . . . . . . . . Targets Rammed . | . . . . . . . . . . . . . . . . . . Kicked . | . . . . . . . . . . . . . . . . . . Crushed . | . . . . . . . . . . . . . . . . . . Highest Temperature 360 | 31 92 17 5 209 15 17 . 7 3 . 4 280 317 276 132 226 360 Average Temperature 59 | 10 38 12 4 42 8 5 . 5 2 . 3 87 115 127 6 66 86 Received Heat Transfer 2757 | . 114 75 234 207 63 36 . 18 . . . 18 624 6 54 633 675 Effects 9 | . . . . . . . . . . . . . 4 3 . . 2 Energy Bleed 3 | . . . . . . . . . . . . . 1 . . . 2 Interference 6 | . . . . . . . . . . . . . 3 3 . . . Siege Activations 12 | . . . . . . . . . . . . . . . . 5 7 Total Turns 133 | . . . . . . . . . . . . . . . . 50 83 Longest Duration 23 | . . . . . . . . . . . . . . . . 19 23 Martial Activations . | . . . . . . . . . . . . . . . . . . Shielding Activations . | . . . . . . . . . . . . . . . . . . Robots Disrupted . | . . . . . . . . . . . . . . . . . . Combat Hostiles . | . . . . . . . . . . . . . . . . . . Robots Corrupted 9 | . . 3 6 . . . . . . . . . . . . . . Combat Hostiles 5 | . . 1 4 . . . . . . . . . . . . . . Parts Fried 17 | . . 6 11 . . . . . . . . . . . . . . Impact Corruptions 23 | . . 11 12 . . . . . . . . . . . . . . Robots Melted . | . . . . . . . . . . . . . . . . . . Combat Hostiles . | . . . . . . . . . . . . . . . . . . Parts Melted . | . . . . . . . . . . . . . . . . . . Heat Transferred 925 | 75 750 . . . . . . . . . . . . . . . 100 Parts Sabotaged . | . . . . . . . . . . . . . . . . . . Parts Stolen . | . . . . . . . . . . . . . . . . . . Parts Stripped . | . . . . . . . . . . . . . . . . . . Power Chain Reactions . | . . . . . . . . . . . . . . . . . . Alert | -11 -10 -9 -8 -8 -8 -8 -7 -7 -7 -7 -6 -6 -6 -6 -5 -5 -5 ------- Run | Yrd Mat Mat Mat Gar Mat Sto Fac Low Low Dat Pro Fac Gar Fac Fac Gar Ext Maximum Alert Level 5 | . . . 1 4 2 1 . . . . . . 3 2 . 5 5 Low Security (%) 37 | 100 100 100 94 18 . . 100 . . . . 100 7 . 100 5 . Level 1 9 | . . . 5 19 . 100 . . . . . . 5 55 . 6 . Level 2 20 | . . . . 30 100 . . . . . . . 73 44 . 19 . Level 3 11 | . . . . 23 . . . . . . . . 12 . . 21 22 Level 4 15 | . . . . 8 . . . . . . . . . . . 34 51 Level 5 4 | . . . . . . . . . . . . . . . . 11 13 High Security 1 | . . . . . . . . . . . . . . . . . 13 Max Security . | . . . . . . . . . . . . . . . . . . Peak Influence 2339 | 5 59 184 212 1170 644 328 164 . . . . 92 951 499 132 1809 2339 Initial 949 | . 3 13 . 68 577 260 149 . . . . 25 51 499 108 14 949 Average 579 | 1 26 102 122 551 603 289 141 . . . . 25 585 366 55 966 1413 Influence Increases 8881 | 10 162 319 631 1207 89 98 75 . . . 90 318 1180 105 458 1995 2144 Destroy 0b10 Robot/C 3740 | . 80 60 360 320 . . . . . . 80 140 480 . 140 940 1140 Destroy 0b10 Robot/NC 235 | 10 . 20 50 . . . . . . . . 25 15 20 15 5 75 Destroy Leader 496 | . 20 14 110 20 . . . . . . 10 40 40 4 44 30 164 Allied During Kill 516 | . . . . 4 . . . . . . . 7 35 . . 36 434 Trap Triggered on 0b10 40 | . . . . . . . . . . . . . . . 40 . . Successful Hack 357 | . 45 21 41 32 10 37 45 . . . . 33 8 22 55 . 8 Disable Machine 180 | . . . . 15 . 15 15 . . . . . 60 . 15 . 60 Anti-Garrison Action 1250 | . . . . 300 . . . . . . . . 350 . . 600 . Destroy Structure 882 | . 2 9 25 81 4 1 . . . . . 28 132 29 74 249 248 Partial Spotted 345 | . . 105 45 45 15 15 15 . . . . 15 . 15 75 . . Lose Combat Pursuer 840 | . 15 90 . 390 60 30 . . . . . 30 60 15 . 135 15 Influence Decreases 6542 | 5 134 349 528 128 658 386 279 124 . . 50 285 302 834 660 206 1614 Entered New Map 2722 | . 2 20 3 38 608 356 179 47 . . . 15 22 452 114 6 860 Time Decay 2140 | 5 98 132 315 . 30 30 100 60 . . 50 209 . 342 365 . 404 Lost Part 721 | . 10 10 50 60 20 . . . . . . 61 220 10 30 120 130 Lost Ally 494 | . 10 5 10 30 . . . 17 . . . . 60 30 32 80 220 Purge Threat 465 | . 14 182 150 . . . . . . . . . . . 119 . . Squads Dispatched 46 | . 3 . 3 . 1 1 . . . . . 5 . 6 12 . 15 Investigation 19 | . 3 . 3 . . 1 . . . . . 1 . 3 6 . 2 Extermination 9 | . . . . . . . . . . . . 2 . 2 5 . . Reinforcement 10 | . . . . . 1 . . . . . . 2 . 1 1 . 5 Assault 8 | . . . . . . . . . . . . . . . . . 8 Garrison . | . . . . . . . . . . . . . . . . . . Intercept . | . . . . . . . . . . . . . . . . . . Searches Triggered . | . . . . . . . . . . . . . . . . . . Data Miner Redirects 5 | . . . . . . . . . . . . . . 1 . . 4 Construction Impeded 3 | . . . . . . . . . . . . . . . . . 3 Haulers Reinforced . | . . . . . . . . . . . . . . . . . . Active Scanning Responses . | . . . . . . . . . . . . . . . . . . Cargo Convoy Interrupts . | . . . . . . . . . . . . . . . . . . Stealth | -11 -10 -9 -8 -8 -8 -8 -7 -7 -7 -7 -6 -6 -6 -6 -5 -5 -5 --------- Run | Yrd Mat Mat Mat Gar Mat Sto Fac Low Low Dat Pro Fac Gar Fac Fac Gar Ext Distress Signals 16 | . 1 1 3 . . . . . . . . 2 . 3 4 . 2 Communications Jammed . | . . . . . . . . . . . . . . . . . . Distress Signals . | . . . . . . . . . . . . . . . . . . Times Spotted 387 | . 7 23 36 53 7 10 2 4 . . 4 17 32 10 52 60 70 Peak Tracking Total 20 | . 5 13 8 14 7 13 1 6 . . 4 7 10 5 8 5 20 Tactical Retreats 42 | . 1 4 . 6 1 1 . . . . . 2 2 3 10 11 1 Traps | -11 -10 -9 -8 -8 -8 -8 -7 -7 -7 -7 -6 -6 -6 -6 -5 -5 -5 ------- Run | Yrd Mat Mat Mat Gar Mat Sto Fac Low Low Dat Pro Fac Gar Fac Fac Gar Ext Traps Triggered 25 | . 1 . 1 . . . . . . . . 3 8 3 1 6 2 Indirectly . | . . . . . . . . . . . . . . . . . . Trap Hack Attempts . | . . . . . . . . . . . . . . . . . . Triggered . | . . . . . . . . . . . . . . . . . . Disarmed . | . . . . . . . . . . . . . . . . . . Reprogrammed 12 | . . . . . . . . . . . . . . . 12 . . Reused 4 | . . . . . . . . . . . . . . . 4 . . Traps Extracted . | . . . . . . . . . . . . . . . . . . Installed . | . . . . . . . . . . . . . . . . . . Triggered 4 | . . . . . . . . . . . . . . . 4 . . Machines | -11 -10 -9 -8 -8 -8 -8 -7 -7 -7 -7 -6 -6 -6 -6 -5 -5 -5 ---------- Run | Yrd Mat Mat Mat Gar Mat Sto Fac Low Low Dat Pro Fac Gar Fac Fac Gar Ext Machines Disabled 31 | . . . . 8 . 1 1 . . . . . 9 . 1 6 5 Max in Single Turn 2 | . . . . 2 . 1 1 . . . . . 1 . 1 1 2 Garrison Access 2 | . . . . . . . 1 . . . . 1 . . . . . Garrison Relay 14 | . . . . 5 . . . . . . . . 5 . . 4 . Phase Generator 1 | . . . . 1 . . . . . . . . . . . . . Energy Cycler 1 | . . . . . . . . . . . . . . . . . 1 Machines Repaired . | . . . . . . . . . . . . . . . . . . Machines Dismantled . | . . . . . . . . . . . . . . . . . . Machines Sabotaged . | . . . . . . . . . . . . . . . . . . Overloaded Fab Kills . | . . . . . . . . . . . . . . . . . . Hacking | -11 -10 -9 -8 -8 -8 -8 -7 -7 -7 -7 -6 -6 -6 -6 -5 -5 -5 --------- Run | Yrd Mat Mat Mat Gar Mat Sto Fac Low Low Dat Pro Fac Gar Fac Fac Gar Ext Machines Accessed 107 | . 8 4 14 3 6 7 7 3 1 4 . 10 1 12 22 1 4 Terminals 73 | . 8 3 11 3 6 7 4 . 1 . . 3 1 8 13 1 4 Fabricators 9 | . . . . . . . 1 . . . . 1 . 3 4 . . Repair Stations 5 | . . . 1 . . . 1 . . . . 2 . . 1 . . Recycling Units 4 | . . 1 . . . . . . . . . 1 . 1 1 . . Scanalyzers 3 | . . . 1 . . . . . . . . 1 . . 1 . . Garrison Access 6 | . . . 1 . . . 1 . . . . 2 . . 2 . . Total Hacks 340 | . 31 22 61 6 18 16 18 8 1 27 . 20 2 29 67 2 12 Successful 209 | . 16 11 39 4 9 10 10 8 1 27 . 12 2 11 42 . 7 Failed 131 | . 15 11 22 2 9 6 8 . . . . 8 . 18 25 2 5 Catastrophic 11 | . 2 2 1 1 . 1 1 . . . . . . 2 1 . . Database Lockouts . | . . . . . . . . . . . . . . . . . . Manual 175 | . 24 16 32 2 16 10 10 . . . . 9 1 17 33 . 5 Terminals 239 | . 31 20 45 6 18 16 11 . 1 . . 7 2 23 45 2 12 Fabricators 19 | . . . . . . . 2 . . . . 2 . 5 10 . . Repair Stations 19 | . . . 9 . . . 3 . . . . 5 . . 2 . . Recycling Units 6 | . . 2 . . . . . . . . . 1 . 1 2 . . Scanalyzers 11 | . . . 6 . . . . . . . . 3 . . 2 . . Garrison Access 11 | . . . 1 . . . 2 . . . . 2 . . 6 . . Terminal Hacks 104 | . 10 7 12 4 2 7 4 8 1 27 . 1 1 2 16 . 2 Record 18 | . . . . . . . . 6 1 11 . . . . . . . Part Schematic 9 | . . . . . . . . . . 9 . . . . . . . Robot Schematic 6 | . . . . . . . 2 . . 4 . . . . . . . Robot Analysis 8 | . 2 1 1 . . 2 . . . . . . . . 2 . . Prototype ID Bank 10 | . 1 1 1 . . . . . . 3 . . . 1 1 . 2 Open Door 6 | . . . . 1 . 3 . 2 . . . . . . . . . Branch Access Points 3 | . . 1 1 . . . . . . . . . . . 1 . . Emergency Access Points 3 | . 1 . . 1 . . . . . . . . 1 . . . . Terminal Index 2 | . 1 . . . 1 . . . . . . . . . . . . Fabricator Index 1 | . . . 1 . . . . . . . . . . . . . . Scanalyzer Index 1 | . . . 1 . . . . . . . . . . . . . . Garrison Index 2 | . . . 1 . . . . . . . . . . . 1 . . Alert Level 2 | . 1 . . . . . . . . . . . . . 1 . . Unreport Threat 6 | . 2 2 1 . . . . . . . . . . . 1 . . Locate Traps 2 | . . . . . . 1 . . . . . . . . 1 . . Reprogram Traps 3 | . . . . . . . . . . . . . . . 3 . . Recall Investigation 2 | . 1 . . . . . . . . . . . . . 1 . . Hauler Manifests 1 | . 1 . . . . . . . . . . . . . . . . Registered Components 1 | . . . 1 . . . . . . . . . . . . . . Zone Layout 16 | . . 2 4 . 1 1 2 . . . . 1 . 1 4 . . Garrison Registry 1 | . . . . 1 . . . . . . . . . . . . . Patrol Navigation 1 | . . . . 1 . . . . . . . . . . . . . Fabricator Hacks 10 | . . . . . . . 1 . . . . 2 . 2 5 . . Network Status 2 | . . . . . . . 1 . . . . . . 1 . . . Load Schematic 5 | . . . . . . . . . . . . 1 . . 4 . . Build 3 | . . . . . . . . . . . . 1 . 1 1 . . Repair Station Hacks 12 | . . . 9 . . . . . . . . 1 . . 2 . . Scan Component 7 | . . . 5 . . . . . . . . 1 . . 1 . . Repair 5 | . . . 4 . . . . . . . . . . . 1 . . Recycling Unit Hacks . | . . . . . . . . . . . . . . . . . . Scanalyzer 10 | . . . 6 . . . . . . . . 2 . . 2 . . Insert Component 5 | . . . 3 . . . . . . . . 1 . . 1 . . Analyze 5 | . . . 3 . . . . . . . . 1 . . 1 . . Garrison Access Hacks 5 | . . . 1 . . . 1 . . . . 2 . . 1 . . Unlock Access 3 | . . . 1 . . . . . . . . 1 . . 1 . . Seal Access 2 | . . . . . . . 1 . . . . 1 . . . . . Unauthorized Hacks 68 | . 6 4 11 . 7 3 4 . . . . 4 1 7 16 . 5 Terminals 61 | . 6 4 11 . 7 3 3 . . . . 2 1 5 14 . 5 Track 2 | . . . . . 1 . . . . . . . 1 . . . . Assimilate 15 | . 1 1 4 . . . 2 . . . . . . 1 5 . 1 Botnet 43 | . 5 3 7 . 5 3 1 . . . . 2 . 4 9 . 4 Operators 1 | . . . . . 1 . . . . . . . . . . . . Fabricators 3 | . . . . . . . 1 . . . . . . 1 1 . . Haulers 2 | . . . . . . . 1 . . . . . . 1 . . . Recompile 1 | . . . . . . . . . . . . . . . 1 . . Repair Stations 1 | . . . . . . . . . . . . 1 . . . . . Mechanics 1 | . . . . . . . . . . . . 1 . . . . . Recycling Units 3 | . . . . . . . . . . . . 1 . 1 1 . . Recyclers 3 | . . . . . . . . . . . . 1 . 1 1 . . Scanalyzers . | . . . . . . . . . . . . . . . . . . Garrison Access . | . . . . . . . . . . . . . . . . . . Data Cores Recovered . | . . . . . . . . . . . . . . . . . . Used . | . . . . . . . . . . . . . . . . . . Hacking Detections 91 | . 8 4 13 3 6 6 7 . . . . 8 1 12 19 1 3 Full Trace Events 16 | . 2 1 3 . 1 1 . . . . . 1 . 3 4 . . Feedback Events . | . . . . . . . . . . . . . . . . . . Feedback Blocked . | . . . . . . . . . . . . . . . . . . Robot Schematics Acquired 6 | . . . . . . . 2 . . 4 . . . . . . . Robots Built 5 | . . . . . . . . . . . . 3 . 2 . . . Authchips 2 | . . . . . . . . . . . . 1 . . 1 . . Time 313 | . . . . . . . . . . . . 116 . 81 116 . . Total Robot Build Rating 11 | . . . . . . . . . . . . 9 . 2 . . . Part Schematics Acquired 14 | . . . 3 . . . . . . 9 . 1 . . 1 . . Parts Built . | . . . . . . . . . . . . . . . . . . Authchips . | . . . . . . . . . . . . . . . . . . Time . | . . . . . . . . . . . . . . . . . . Total Part Build Rating . | . . . . . . . . . . . . . . . . . . Parts Repaired 5 | . . . 4 . . . . . . . . . . . 1 . . Time 200 | . . . 166 . . . . . . . . . . . 34 . . Parts Recycled . | . . . . . . . . . . . . . . . . . . Recycled Matter . | . . . . . . . . . . . . . . . . . . Retrieved Matter . | . . . . . . . . . . . . . . . . . . Retrieved Components . | . . . . . . . . . . . . . . . . . . Parts Scanalyzed 5 | . . . 3 . . . . . . . . 1 . . 1 . . Part Schematics Acquired 5 | . . . 3 . . . . . . . . 1 . . 1 . . Parts Damaged . | . . . . . . . . . . . . . . . . . . Bothacking | -11 -10 -9 -8 -8 -8 -8 -7 -7 -7 -7 -6 -6 -6 -6 -5 -5 -5 ------------ Run | Yrd Mat Mat Mat Gar Mat Sto Fac Low Low Dat Pro Fac Gar Fac Fac Gar Ext Used RIF Installer . | . . . . . . . . . . . . . . . . . . Robots Hacked . | . . . . . . . . . . . . . . . . . . Non-combat . | . . . . . . . . . . . . . . . . . . Combat . | . . . . . . . . . . . . . . . . . . Robot Hacks Applied . | . . . . . . . . . . . . . . . . . . Relay Couplers Released 57 | . . . . 19 . . . . . . . . 21 . 4 13 . Machine Destruction 49 | . . . . 19 . . . . . . . . 17 . . 13 . Programmers 8 | . . . . . . . . . . . . . 4 . 4 . . Fabnet Peak Effective % . | . . . . . . . . . . . . . . . . . . Robots Rewired 8 | . . . . . . . . . . . . . . . . 6 2 Allies Hacked . | . . . . . . . . . . . . . . . . . . Hacks Repelled . | . . . . . . . . . . . . . . . . . . Allies | -11 -10 -9 -8 -8 -8 -8 -7 -7 -7 -7 -6 -6 -6 -6 -5 -5 -5 -------- Run | Yrd Mat Mat Mat Gar Mat Sto Fac Low Low Dat Pro Fac Gar Fac Fac Gar Ext Total Allies 39 | . 1 1 2 1 . . 2 . . . . 4 . 3 4 8 13 Largest Group 8 | . 1 1 1 1 . . 2 2 . . . 3 3 2 1 3 8 Highest-Rated Group 388 | . 10 10 10 20 . . 52 52 . . . 75 75 20 26 388 321 Highest-Rated Ally 159 | . 10 10 10 20 . . 26 26 . . . 25 25 10 26 148 159 Initial Warlord ECA Mod 117 | . . . . . 8 8 7 7 7 7 6 6 4 14 13 12 18 Warlord Squad Rendezvous 3 | . . . . . . . . . . . . 2 . . 1 . . Dakka 1 | . . . . . . . . . . . . 1 . . . . . Geek 1 | . . . . . . . . . . . . . . . 1 . . Ranger 1 | . . . . . . . . . . . . 1 . . . . . Total Orders 2 | . . . 2 . . . . . . . . . . . . . . STAY 1 | . . . 1 . . . . . . . . . . . . . . FOLLOW 1 | . . . 1 . . . . . . . . . . . . . . Ally Attacks 277 | . . . . 5 . . . . . . . 3 13 . . 45 211 Total Damage 7258 | . . . . 167 . . . . . . . 34 388 . . 1631 5038 Kills 57 | . . . . 3 . . . . . . . . 7 . . 3 44 Allies Corrupted 2 | . . . . . . . . 2 . . . . . . . . . Allies Melted 1 | . . . . 1 . . . . . . . . . . . . . Intel | -11 -10 -9 -8 -8 -8 -8 -7 -7 -7 -7 -6 -6 -6 -6 -5 -5 -5 ------- Run | Yrd Mat Mat Mat Gar Mat Sto Fac Low Low Dat Pro Fac Gar Fac Fac Gar Ext Active Infowar (turns) 6871 | 6 91 . 207 . . . 195 166 70 20 130 483 244 768 994 2376 1121 Optics 1688 | . . . . . . . . . . . . . 244 768 676 . . Sensors 5381 | . . . . . . . 195 166 70 20 130 483 . 743 971 1482 1121 Seismic 97 | 6 91 . . . . . . . . . . . . . . . . Machine Analysis 207 | . . . 207 . . . . . . . . . . . . . . Triangulation 1240 | . . . . . . . . . . . . . . . 317 923 . ECM 1117 | . . . . . . . . . . . . . . 37 728 352 . Robot Analysis Total 8 | . 2 1 1 . . 2 . . . . . . . . 2 . . Derelict Logs Recovered 6 | . . . . . . . . 3 2 . 1 . . . . . . Drone Launches . | . . . . . . . . . . . . . . . . . . Drone Recoveries . | . . . . . . . . . . . . . . . . . . Exploration | -11 -10 -9 -8 -8 -8 -8 -7 -7 -7 -7 -6 -6 -6 -6 -5 -5 -5 ------------- Run | Yrd Mat Mat Mat Gar Mat Sto Fac Low Low Dat Pro Fac Gar Fac Fac Gar Ext Turns Passed 9873 | 55 231 290 778 584 66 64 204 168 70 20 130 732 1222 768 994 2376 1121 Spaces Moved 13076 | 45 351 506 846 749 145 182 609 405 278 79 368 1064 1078 1777 2340 1719 535 Core 70 | 35 16 . . 8 . . . . . . . 1 10 . . . . Treads 1460 | 10 . . . . . . . . . . . . 171 . . 744 535 Legs 117 | . . . . . . . . . . . . . . . . 117 . Wheels . | . . . . . . . . . . . . . . . . . . Hover 736 | . . . . . . . . . . . . 418 318 . . . . Flight 10693 | . 335 506 846 741 145 182 609 405 278 79 368 645 579 1777 2340 858 . Fastest Speed 23 | 50 37 34 27 31 31 31 27 25 25 25 25 24 23 28 27 26 155 Average Speed 46 | 74 40 34 30 34 31 31 27 26 25 25 25 35 68 29 29 91 155 Slowest Speed 410 | 160 50 37 92 350 31 31 31 27 25 25 25 250 410 31 111 190 158 Overloaded Moves . | . . . . . . . . . . . . . . . . . . Propulsion Burnouts . | . . . . . . . . . . . . . . . . . . Robots Hopped 70 | . 4 5 15 10 1 3 1 . 1 . 1 . . 5 21 2 1 Potential Cave-ins . | . . . . . . . . . . . . . . . . . . Cave-ins Triggered 2 | . . . 1 . . . . . . . . . . 1 . . . Exploration Rate (%) 55 | 3 62 47 69 85 23 52 17 64 50 69 58 25 92 49 67 82 77 Regions Visited 17 Branch Regions 6 Pre-discovered Areas 2 | . . . . . . . . 1 . 1 . . . . . . . Known Exits Taken 10 | . . . 1 . 1 . 1 1 1 1 1 1 . 1 1 . . Unknown Exits Taken 4 | 1 1 1 . . . 1 . . . . . . . . . . . Scrap Searched 7 | . . . . . . . . 4 . . 3 . . . . . . Spaces Dug 190 | . 2 9 15 1 4 1 . . . . 1 12 27 29 37 41 11 Terrain Destroyed 455 | . 2 9 25 55 4 1 . . . . 17 26 32 29 37 52 166 Melee 159 | . 2 9 15 1 4 1 . . . . 1 12 27 29 37 21 . Projectile 54 | . . . . . . . . . . . . . 5 . . 31 18 AOE 242 | . . . 10 54 . . . . . . 16 14 . . . . 148 Terrain Rammed . | . . . . . . . . . . . . . . . . . . Walls Destroyed . | . . . . . . . . . . . . . . . . . . Machines Disabled . | . . . . . . . . . . . . . . . . . . Actions | -11 -10 -9 -8 -8 -8 -8 -7 -7 -7 -7 -6 -6 -6 -6 -5 -5 -5 --------- Run | Yrd Mat Mat Mat Gar Mat Sto Fac Low Low Dat Pro Fac Gar Fac Fac Gar Ext Total 15492 | 55 391 566 1200 953 156 181 644 466 276 78 397 1374 1343 1954 2528 2228 702 Wait 1161 | 1 . 24 241 132 2 . 30 43 . . 21 192 17 98 100 189 71 Move 12930 | 44 342 495 817 730 142 175 606 404 275 78 365 1064 1077 1768 2302 1713 533 Hop 58 | . 4 5 14 6 1 3 1 . 1 . 1 . . 3 16 2 1 Pick Up 63 | 1 6 6 8 2 1 . . 5 . . . 9 3 6 7 9 . Fast Attach 115 | 5 5 1 12 5 2 . 3 3 . . . 13 24 3 8 24 7 Attach 42 | . 3 2 5 4 1 . 1 1 . . . 5 6 1 5 6 2 Detach 19 | . . 1 5 2 . . . 1 . . . . 2 . 1 6 1 Swap 78 | . 1 1 7 3 2 . . 2 . . 4 16 6 10 8 11 7 Drop 102 | . 7 2 7 2 1 . 2 7 . . 1 15 9 5 13 27 4 Fire 211 | 4 21 . 1 1 . . . . . . 4 2 50 . . 64 64 Melee 557 | . 2 29 83 66 4 3 1 . . . 1 33 94 40 68 133 . Ram . | . . . . . . . . . . . . . . . . . . Kick . | . . . . . . . . . . . . . . . . . . Crush . | . . . . . . . . . . . . . . . . . . Escape Stasis 137 | . . . . . . . . . . . . 25 54 20 . 38 . Rewire 19 | . . . . . . . . . . . . . 1 . . 6 12 Trap . | . . . . . . . . . . . . . . . . . . Miscellaneous . | . . . . . . . . . . . . . . . . . . Route ------- -11/Scrapyard -10/Materials -9/Materials (discovered 3 exits: *Mat x2 / Min) -8/Materials (discovered 3 exits: *Fac / Sto / Gar) -8/Garrison (discovered 3 exits: *Mat x3) -8/Materials -8/Storage -7/Factory -7/Lower Caves -7/Lower Caves -7/Data Miner -6/Proximity Caves -6/Factory (discovered 3 exits: Fac / Low / Gar) -6/Garrison (discovered 3 exits: *Fac x3) -6/Factory -5/Factory (discovered 8 exits: *Fac x3 / *Upp x2 / Ext x2 / Gar) -5/Garrison (discovered 3 exits: *Ext x3) -5/Extension History --------- Turn | Location | Event 6 | -11/Scrapyard | Discovered new exit (range 15) 56 | -11/Scrapyard | Entered Materials 107 | -10/Materials | Discovered new exit (range 14) 287 | -10/Materials | Entered another Materials area 287 | -9/Materials | Evolved 2 slots: Propulsion x1, Utility x1 300 | -9/Materials | Build established: Mutant 350 | -9/Materials | Discovered new exit (range 8) 563 | -9/Materials | Identified exit to Mines 572 | -9/Materials | Discovered new exit (range 7) 577 | -9/Materials | Entered another Materials area 577 | -8/Materials | Evolved 2 slots: Propulsion x1, Utility x1 774 | -8/Materials | Destroyed 10 combat bots 982 | -8/Materials | Identified exit to Storage 1041 | -8/Materials | Discovered new exit (range 14) 1102 | -8/Materials | Crushed by falling debris 1217 | -8/Materials | Repaired Imp. Flight Unit 1270 | -8/Materials | Repaired Imp. Flight Unit 1292 | -8/Materials | Build established: Sprinter 1297 | -8/Materials | Repaired Lgt. Ion Engine 1337 | -8/Materials | Repaired Surge Thruster 1351 | -8/Materials | Identified exit to Garrison 1355 | -8/Materials | Entered Garrison 1355 | -8/Garrison | Accompanied by 1 ally 1383 | -8/Garrison | Garrison Relay disabled 1421 | -8/Garrison | Triggered checkpoint 1461 | -8/Garrison | Garrison Relay disabled 1487 | -8/Garrison | Discovered new exit (range 54) 1487 | -8/Garrison | Discovered new exit (range 79) 1487 | -8/Garrison | Discovered new exit (range 71) 1556 | -8/Garrison | Triggered checkpoint 1571 | -8/Garrison | Garrison Relay disabled 1609 | -8/Garrison | Core integrity fell below 50% 1656 | -8/Garrison | Phase Generator disabled 1739 | -8/Garrison | Triggered checkpoint 1749 | -8/Garrison | Rescued a captive Derelict 1797 | -8/Garrison | Triggered checkpoint 1798 | -8/Garrison | Garrison Relay disabled 1804 | -8/Garrison | Garrison Relay disabled 1816 | -8/Garrison | Attempted to access garrison exit controls, blocked by remote lockdown 1852 | -8/Garrison | Triggered checkpoint 1857 | -8/Garrison | Triggered checkpoint 1871 | -8/Garrison | Attempted to access garrison exit controls, blocked by remote lockdown 1939 | -8/Garrison | Entered Materials 1988 | -8/Materials | Core integrity fell below 20% 2003 | -8/Materials | Discovered exit to Storage (range 7) 2005 | -8/Materials | Entered Storage 2063 | -8/Storage | Discovered new exit (range 5) 2069 | -8/Storage | Entered Factory 2069 | -7/Factory | Evolved 2 slots: Propulsion x1, Utility x1 2220 | -7/Factory | Discovered new exit (range 8) 2228 | -7/Factory | Identified exit to Lower Caves 2273 | -7/Factory | Entered Lower Caves 2273 | -7/Lower Caves | Accompanied by 2 allies 2274 | -7/Lower Caves | Encountered a Warlord checkpoint 2285 | -7/Lower Caves | Met a Warlord Commander 2286 | -7/Lower Caves | Learned location of Warlord (-5) 2287 | -7/Lower Caves | Warlord Commander delivered Encrypted Comm Array 2287 | -7/Lower Caves | Found Encrypted Comm Array 2315 | -7/Lower Caves | Learned Factory stockpile data 2319 | -7/Lower Caves | Entered an active Warlord outpost 2324 | -7/Lower Caves | Learned location of 1 exit from Factory 2324 | -7/Lower Caves | Learned Factory stockpile data 2347 | -7/Lower Caves | Learned Factory terminal intel 2375 | -7/Lower Caves | Attacked by a faux Warlord 2398 | -7/Lower Caves | Learned 8 Factory zone layouts 2437 | -7/Lower Caves | Discovered new exit (range 15) 2440 | -7/Lower Caves | Identified exit to Lower Caves 2441 | -7/Lower Caves | Entered another Lower Caves area 2448 | -7/Lower Caves | Learned Factory emergency access door positions 2495 | -7/Lower Caves | Learned Factory stockpile data 2508 | -7/Lower Caves | Discovered new exit (range 14) 2511 | -7/Lower Caves | Identified exit to Data Miner 2511 | -7/Lower Caves | Entered Data Miner 2511 | -7/Data Miner | Discovered new exit (range 6) 2513 | -7/Data Miner | Identified exit to Proximity Caves 2516 | -7/Data Miner | Met Data Miner 2521 | -7/Data Miner | Learned location of Section 7 (-2) 2521 | -7/Data Miner | Acquired the access code to Warlord's prototype stash 2526 | -7/Data Miner | Received God Mode back door access code from Data Miner 2530 | -7/Data Miner | Build established: Hacker-Sprinter 2531 | -7/Data Miner | Entered Proximity Caves 2534 | -6/Proximity Caves | Learned location of 1 exit from Factory 2659 | -6/Proximity Caves | Discovered new exit (range 10) 2661 | -6/Proximity Caves | Identified exit to Factory 2661 | -6/Proximity Caves | Entered Factory 2661 | -6/Factory | Evolved 2 slots: Utility x2 2662 | -6/Factory | Identified exit to Lower Caves 2662 | -6/Factory | Identified exit to Factory 2666 | -6/Factory | Loaded intel: 26 terminal locations 2817 | -6/Factory | Lost 4 parts (1p2n1w) 3188 | -6/Factory | Joined by Warlord Dakka squad 3222 | -6/Factory | Build established: Hacker-Mutant 3239 | -6/Factory | Lost 3 allies 3356 | -6/Factory | Fabricated C-17 Slicer (x3) 3382 | -6/Factory | Joined by Warlord Ranger squad 3391 | -6/Factory | Identified exit to Garrison 3393 | -6/Factory | Entered Garrison 3393 | -6/Garrison | Accompanied by 3 allies 3415 | -6/Garrison | Garrison Relay disabled 3431 | -6/Garrison | Triggered checkpoint 3460 | -6/Garrison | Heavy support dispatched to Factory 3486 | -6/Garrison | Triggered checkpoint 3489 | -6/Garrison | Triggered checkpoint 3532 | -6/Garrison | Lost 3 allies 3564 | -6/Garrison | Lost 4 parts (3n1w) 3631 | -6/Garrison | Garrison Relay disabled 3645 | -6/Garrison | Garrison Relay disabled 3677 | -6/Garrison | Triggered checkpoint 3699 | -6/Garrison | Discovered new exit (range 15) 3734 | -6/Garrison | H-XX Assembler disabled 3791 | -6/Garrison | Lost 6 parts (1p3n2u) 4087 | -6/Garrison | Core integrity fell below 50% 4167 | -6/Garrison | Triggered checkpoint 4236 | -6/Garrison | Lost 4 parts (1p2n1u) 4313 | -6/Garrison | Core integrity fell below 20% 4350 | -6/Garrison | Lost 5 parts (1n3u1w) 4364 | -6/Garrison | Identified exit to Factory 4460 | -6/Garrison | Garrison Relay disabled 4468 | -6/Garrison | Discovered exit to Factory (range 13) 4529 | -6/Garrison | Triggered checkpoint 4532 | -6/Garrison | Garrison Relay disabled 4551 | -6/Garrison | Discovered exit to Factory (range 8) 4615 | -6/Garrison | Entered Factory 4960 | -6/Factory | Fabricated T-07 Excavator? 5091 | -6/Factory | Crushed by falling debris 5377 | -6/Factory | Discovered exit to Factory (range 15) 5382 | -6/Factory | Incoming investigation squad redirected 5383 | -6/Factory | Entered another Factory area 5383 | -5/Factory | Evolved 2 slots: Propulsion x1, Utility x1 5446 | -5/Factory | Discovered new exit (range 9) 5449 | -5/Factory | Identified exit to Factory 5554 | -5/Factory | Identified exit to Upper Caves 5554 | -5/Factory | Identified exit to Extension 5572 | -5/Factory | Joined by Warlord Geek squad 5619 | -5/Factory | Discovered exit to Factory (range 8) 5693 | -5/Factory | Discovered exit to Factory (range 11) 5861 | -5/Factory | Build established: Hacker-Ninja 5888 | -5/Factory | Allied Derelicts emerged from ambush trap array 5937 | -5/Factory | Lost 3 allies 6119 | -5/Factory | Repaired Impulse Thruster Array 6221 | -5/Factory | Spotted B-75 Beast 6310 | -5/Factory | Identified exit to Garrison 6377 | -5/Factory | Entered Garrison 6386 | -5/Garrison | Spotted B-86 Titan 6419 | -5/Garrison | Garrison Relay disabled 6421 | -5/Garrison | Build established: Hacker-Sprinter 6668 | -5/Garrison | Destroyed 7 combat bots 6712 | -5/Garrison | Lost 3 parts (1n2u) 6723 | -5/Garrison | Triggered checkpoint 6869 | -5/Garrison | Lost 4 allies 6871 | -5/Garrison | Discovered exit to Extension (range 10) 6890 | -5/Garrison | Triggered checkpoint 6990 | -5/Garrison | Garrison Relay disabled 7050 | -5/Garrison | Lost 4 parts (3n1u) 7173 | -5/Garrison | Core integrity fell below 50% 7247 | -5/Garrison | Discovered exit to Extension (range 14) 7429 | -5/Garrison | Triggered checkpoint 7464 | -5/Garrison | Garrison Relay disabled 7487 | -5/Garrison | Triggered checkpoint 7586 | -5/Garrison | Build established: Hacker-Mutant 7651 | -5/Garrison | Triggered checkpoint 7812 | -5/Garrison | Discovered exit to Extension (range 10) 7829 | -5/Garrison | Triggered checkpoint 7875 | -5/Garrison | Garrison Relay disabled 7888 | -5/Garrison | Found embedded Infiltrators 7981 | -5/Garrison | Allies destroyed B-86 Titan 7994 | -5/Garrison | Spotted B-86 Titan 8017 | -5/Garrison | Destroyed B-86 Titan 8047 | -5/Garrison | Rewired B-90 Cyclops 8071 | -5/Garrison | Rewired B-90 Cyclops 8558 | -5/Garrison | Attempted to access garrison exit controls, blocked by remote lockdown 8753 | -5/Garrison | Entered Extension 8753 | -5/Extension | Accompanied by 2 allies 8933 | -5/Extension | Spotted B-75 Beast 8953 | -5/Extension | Allies destroyed B-75 Beast 8987 | -5/Extension | Spotted B-75 Beast 9005 | -5/Extension | Allies destroyed B-75 Beast 9053 | -5/Extension | First assault squad dispatched 9069 | -5/Extension | Rescued a captive Derelict 9085 | -5/Extension | Rescued a captive Derelict 9106 | -5/Extension | Rescued a captive Derelict 9107 | -5/Extension | Rescued a captive Derelict 9118 | -5/Extension | Rescued a captive Derelict 9118 | -5/Extension | Rescued a captive Derelict 9142 | -5/Extension | Rescued a captive Derelict 9343 | -5/Extension | Incoming investigation squad redirected 9373 | -5/Extension | Incoming assault squad redirected 9631 | -5/Extension | Energy Cycler disabled 9631 | -5/Extension | Rescued a captive Derelict 9631 | -5/Extension | Rescued a captive Derelict 9631 | -5/Extension | Rescued a captive Derelict 9632 | -5/Extension | Rescued a captive Derelict 9633 | -5/Extension | Core integrity fell below 20% 9647 | -5/Extension | Rescued A7 9669 | -5/Extension | Incoming assault squad redirected 9678 | -5/Extension | Incoming assault squad redirected 9727 | -5/Extension | High security lockdown imminent 9785 | -5/Extension | Found Prototype Protection 9785 | -5/Extension | Identified Med. Regenerative Plating 9807 | -5/Extension | High security lockdown engaged 9874 | -5/Extension | Destroyed by G-50 Soldier with Heavy Laser Last Messages --------------- 09869_ B-60 Warrior destroyed. 09870_ The unstable cave ceiling collapses. 09870_ Adv. Hacking Suite destroyed. 09870_ Adv. Corruption Screen intercepted 4% system corruption. 09870_ Adv. Corruption Screen expended. 09872_ Adv. Signal Interpreter destroyed. 09872_ System corrupted by crushing effect (+1). 09873_ Destroyed Com. Wheel. 09873_ L-41 Fighter destroyed. 09873_ G-67 Veteran destroyed. 09873_ Arm. Heavy Treads destroyed. 09873_ Destroyed Arm. Heavy Treads. 09873_ Lrn. Missile Launcher destroyed. 09873_ Destroyed Lrn. Missile Launcher. 09873_ B-60 Warrior destroyed. 09873_ G-50 Soldier destroyed. 09873_ M-28 Smith destroyed. 09874_ The unstable cave ceiling collapses. 09874_ A7 knocked back. Map ----- +----------------------------------------------------+ | | | | | | | | | | | | | | | | | | | | | | | | | | | | | | | | | | | | | | | | | ?????????????????????#########???????? | | ????#######??????????# ###?????? | | ##### #?????????## #?????? | | ==# ########### ####??? | | + b #??? | | # ### ##### % @% % #??? | | # #?# #?# %b= [= ]#??? | | ! ## ##?# ## Ybi= %bg #??? | | ###### #??# # # pg= hg #??? | | ?????# #??# # %b% g] #??? | | ?????# #??# # +###??? | | ?????# #??###### ###%#????? | | ?????# ###???????# # ###?? #????? | | ?????# T?????????##### # ?????#????? | | ?????# #?????????????###?##??????????? | | ?????# ??????????????????????????????? | | ?????##??????????????????????????????? | | ?????????????????????????????????????? | | ?????????????????????????????????????? | | ?????????????????????????????????????? | | ?????????????????????????????????????? | | ?????????????????????????????????????? | | ?????????????????????????????????????? | | ?????????????????????????????????????? | | ?????????????????????????????????????? | | ?????????????????????????????????????? | | ?????????????????????????????????????? | | ?????????????????????????????????????? | | ?????????????????????????????????????? | | ?????????????????????????????????????? | +----------------------------------------------------+ Best States ------------- Heat Dissipation 78 Energy Generation 25 Energy Capacity 450 Matter Stores 300 Matter Capacity 300 Sight Range 22 Robot Scan Range 16 Terrain Scan Density 10 ECM Strength 1 Additional Mass Support 6 Corruption Block 20 Armor Coverage 450 Core Shielding 20 Propulsion Shielding 33 Phase Shifting 15 Evasion (%) 73 Targeting Accuracy 10 Recoil Reduction 6 Offensive Hacking 32 Defensive Hacking 20 Authchip Count 1 Item Schematics ----------------- Hacking Suite | -8/Materials | Scanalyzed Surge Thruster | -8/Materials | Scanalyzed Imp. Flight Unit | -8/Materials | Scanalyzed Combat Drone Bay | -7/Data Miner | Free Lgt. Regenerative Plating | -7/Data Miner | Free Cld. Cesium-ion Thruster | -7/Data Miner | Free Gravity Neutralizer | -7/Data Miner | Free Com. Ion Cannon | -7/Data Miner | Free Field Propulsion Drive | -7/Data Miner | Free Adv. Hacking Suite | -7/Data Miner | Free Imp. Remote Datajack | -7/Data Miner | Free Linear Gravjet | -7/Data Miner | Free Imp. Hacking Suite | -6/Factory | Scanalyzed Adv. System Shield | -5/Factory | Scanalyzed Robot Schematics ------------------ B-36 Bruiser | -7/Factory | Hacked C-17 Slicer | -7/Factory | Hacked A-15 Conveyor | -7/Data Miner | Free G-50 Soldier | -7/Data Miner | Free B-48 Gladiator | -7/Data Miner | Free L-41 Fighter | -7/Data Miner | Free Fabricated ------------ C-17 Slicer | x3 | -6/Factory | Authchip T-07 Excavator | x2 | -6/Factory | Preloaded Repaired ---------- Imp. Flight Unit | 27% | -8/Materials Imp. Flight Unit | 22% | -8/Materials Lgt. Ion Engine | 20% | -8/Materials Surge Thruster | 40% | -8/Materials Impulse Thruster Array | 65% | -5/Factory Alien Tech Used ----------------- None Achievements -------------- Ambidextrous Challenges ------------ None Game ------ Seed ForceParticleMonowheel Manual? 0 Play Time 03:19:26 Cumulative 215.1 hours Start 2025.06.06 @ 10:23:52 End 2025.06.06 @ 14:42:45 Sessions 3 Manual Loads 0 Difficulty Rogue Special Mode None Game No. 109 Rogue 109 Adventurer 0 Explorer 0 Win Type - Total 14 Types 6/0/5/1/2/0/0/0/0/0 Lore% 81 Gallery% 68 Achievement% 65 Wizard Run 0 Options --------- Layout 1 ASCII 0 Keyboard 0 Movement Numpad Keybinds 0 Fullscreen 1 Font 24/Smallcaps Map View 50x35 Zoom Use 0% Tactical HUD 1 Map Filters NONE Filters NONE Steam 1 RUN: a6409ffd-5570-468e-901e-ebabeeb30995